fUST/lending_fUST_20250227
["ID","MTS","AMOUNT","RATE_DAILY","PERIOD"]
[354592177,1740592240018,-257.40731415,0.00051954,120]
[354592178,1740592240231,-257.40731415,0.00051954,120]
[354592179,1740592240241,-257.40731415,0.00051954,120]
[354592180,1740592240251,-257.40731415,0.00051954,120]
[354592181,1740592240260,-257.4,0.00051954,120]
[354592182,1740592240270,-600.61706634,0.00051954,120]
[354592183,1740592240279,-600.61706634,0.00051954,120]
[354592184,1740592240289,-600.61706634,0.00051954,120]
[354592185,1740592240299,-600.61706634,0.00051954,120]
[354592187,1740592240308,-600.61706634,0.00051954,120]
[354592188,1740592240318,-600.61706634,0.00051954,120]
[354592189,1740592240327,-600.61706634,0.00051954,120]
[354592191,1740592240337,-600.61706634,0.00051954,120]
[354592193,1740592240346,-600.61706634,0.00051954,120]
[354592194,1740592240356,-600.61706634,0.00051954,120]
[354592195,1740592240365,-600.61706634,0.00051954,120]
[354592196,1740592240376,-600.61706634,0.00051954,120]
[354592197,1740592240386,-600.61706634,0.00051954,120]
[354592198,1740592240395,-600.61706634,0.00051954,120]
[354592199,1740592240404,-600.61706634,0.00051954,120]
[354592200,1740592240414,-600.61706634,0.00051954,120]
[354592201,1740592240423,-600.61706634,0.00051954,120]
[354592202,1740592240433,-600.61706634,0.00051954,120]
[354592204,1740592240443,-600.61706634,0.00051954,120]
[354592205,1740592240452,-600.61,0.00051954,120]
[354592207,1740592240461,-154.60818018,0.00051954,2]
[354592209,1740592240470,-8142.7653648,0.00051954,2]
[354592210,1740592240479,-2520.47058538,0.00051954,30]
[354592211,1740592240488,-500.0,0.00052,10]
[354592212,1740592240498,-172.42415289,0.00052043,120]
[354592213,1740592240507,-500.0,0.00052043,31]
[354592214,1740592240518,-500.0,0.00052043,120]
[354592215,1740592240527,-524.50532938,0.00052043,120]
[354592216,1740592240537,-500.0,0.00052043,31]
[354592217,1740592240547,-500.0,0.00052043,120]
[354592218,1740592240556,-500.0,0.00052043,31]
[354592219,1740592240565,-500.0,0.00052043,120]
[354592220,1740592240574,-500.0,0.00052043,120]
[354592221,1740592240583,-248.29328175,0.00052043,120]
[354592223,1740592240592,-500.0,0.00052043,31]
[354592224,1740592240602,-500.0,0.00052043,31]
[354592225,1740592240612,-325.86087384,0.00052043,31]
[354592226,1740592240623,-500.0,0.00052043,31]
[354592227,1740592240632,-500.0,0.00052043,120]
[354592228,1740592240641,-224.7879983,0.00052043,120]
[354592229,1740592240650,-463.55426361,0.00052043,120]
[354592230,1740592240659,-500.0,0.00052043,31]
[354592231,1740592240668,-152.60294488,0.00052043,31]
[354592232,1740592240678,-45643.4927639,0.00052044,4]
[354592233,1740592240687,-319504.449347,0.00052044,4]
[354592234,1740592240696,-3859.88067961,0.00052053,120]
[354592235,1740592240706,-381.93590713,0.00052053,120]
[354592236,1740592240719,-5000.0,0.00052053,120]
[354592237,1740592240728,-5000.0,0.00052053,120]
[354592238,1740592240738,-500.0,0.00052054,2]
[354592239,1740592240747,-500.0,0.00052054,2]
[354592240,1740592240757,-500.0,0.00052054,2]
[354592241,1740592240767,-500.0,0.00052054,2]
[354592242,1740592240776,-175.37616014,0.00052054,2]
[354592243,1740592240786,-500.0,0.00052054,120]
[354592244,1740592240796,-500.0,0.00052054,120]
[354592245,1740592240805,-500.0,0.00052054,120]
[354592246,1740592240815,-501.76440804,0.00052054,120]
[354592247,1740592240824,-503.40568368,0.00052054,120]
[354592248,1740592240833,-500.53484753,0.00052054,120]
[354592249,1740592240842,-500.0,0.00052054,120]
[354592250,1740592240851,-500.0,0.00052054,120]
[354592251,1740592240860,-500.0,0.00052054,120]
[354592252,1740592240872,-500.0,0.00052054,120]
[354592253,1740592240881,-500.0,0.00052054,120]
[354592254,1740592240890,-503.41060773,0.00052054,120]
[354592255,1740592240899,-500.0,0.00052054,120]
[354592256,1740592240908,-500.0,0.00052054,120]
[354592257,1740592240918,-500.0,0.00052054,120]
[354592258,1740592240927,-500.0,0.00052054,120]
[354592259,1740592240936,-500.0,0.00052054,14]
[354592260,1740592240946,-500.0,0.00052054,120]
[354592261,1740592240955,-500.0,0.00052054,120]
[354592262,1740592240964,-500.0,0.00052054,120]
[354592263,1740592240974,-500.0,0.00052054,120]
[354592264,1740592240983,-2338.02,0.00052054,120]
[354592265,1740592240993,-500.0,0.00052054,120]
[354592266,1740592241002,-500.0,0.00052054,120]
[354592267,1740592241011,-500.0,0.00052054,120]
[354592268,1740592241021,-953.19,0.00052054,120]
[354592269,1740592241030,-500.34175052,0.00052054,15]
[354592270,1740592241040,-500.0,0.00052054,120]
[354592271,1740592241049,-378.14783404,0.00052054,120]
[354592272,1740592241058,-500.0,0.00052054,120]
[354592273,1740592241068,-500.0,0.00052054,120]
[354592274,1740592241077,-500.0,0.00052054,120]
[354592275,1740592241087,-845.76,0.00052054,120]
[354592276,1740592241096,-500.0,0.00052054,120]
[354592277,1740592241106,-402.79227011,0.00052054,120]
[354592278,1740592241116,-500.0,0.00052054,120]
[354592279,1740592241127,-500.0,0.00052054,120]
[354592280,1740592241137,-500.0,0.00052054,120]
[354592281,1740592241146,-500.0,0.00052054,120]
[354592282,1740592241155,-1035.18,0.00052054,120]
[354592283,1740592241164,-1000.0,0.00052054,120]
[354592284,1740592241174,-500.0,0.00052054,120]
[354592285,1740592241183,-500.0,0.00052054,120]
[354592286,1740592241192,-500.0,0.00052054,120]
[354592287,1740592241202,-500.0,0.00052054,120]
[354592288,1740592241211,-500.0,0.00052054,120]
[354592289,1740592241220,-503.20601376,0.00052054,120]
[354592290,1740592241229,-606.35923153,0.00052054,120]
[354592291,1740592241239,-210.001472,0.00052054,120]
[354592292,1740592241248,-500.0,0.00052054,120]
[354592293,1740592241257,-500.0,0.00052054,120]
[354592294,1740592241267,-500.0,0.00052054,120]
[354592295,1740592241276,-1419.34,0.00052054,120]
[354592296,1740592241286,-526.88,0.00052054,120]
[354592297,1740592241295,-500.0,0.00052054,120]
[354592298,1740592241304,-500.0,0.00052054,120]
[354592299,1740592241313,-500.0,0.00052054,120]
[354592300,1740592241322,-500.0,0.00052054,120]
[354592301,1740592241331,-500.0,0.00052054,120]
[354592302,1740592241341,-503.75192469,0.00052054,120]
[354592303,1740592241350,-970.25,0.00052054,120]
[354592304,1740592241359,-500.0,0.00052054,120]
[354592305,1740592241368,-500.0,0.00052054,120]
[354592306,1740592241381,-500.0,0.00052054,120]
[354592307,1740592241390,-500.0,0.00052054,120]
[354592308,1740592241399,-500.0,0.00052054,20]
[354592309,1740592241408,-500.0,0.00052054,120]
[354592310,1740592241417,-500.0,0.00052054,20]
[354592311,1740592241426,-500.0,0.00052054,20]
[354592312,1740592241436,-500.0,0.00052054,20]
[354592313,1740592241445,-500.0,0.00052054,20]
[354592314,1740592241454,-500.0,0.00052054,20]
[354592315,1740592241462,-500.0,0.00052054,20]
[354592316,1740592241471,-500.0,0.00052054,120]
[354592317,1740592241480,-500.0,0.00052054,120]
[354592318,1740592241494,-500.0,0.00052054,120]
[354592319,1740592241503,-500.0,0.00052054,120]
[354592320,1740592241512,-231.90120028,0.00052054,120]
[354592321,1740592241521,-500.0,0.00052054,120]
[354592322,1740592241531,-500.0,0.00052054,120]
[354592323,1740592241540,-500.0,0.00052054,120]
[354592324,1740592241549,-500.0,0.00052054,28]
[354592325,1740592241558,-500.0,0.00052054,120]
[354592326,1740592241567,-500.0,0.00052054,120]
[354592327,1740592241576,-500.0,0.00052054,120]
[354592328,1740592241585,-500.0,0.00052054,120]
[354592329,1740592241594,-861.93,0.00052054,120]
[354592330,1740592241603,-500.0,0.00052054,120]
[354592331,1740592241612,-646.0,0.00052054,120]
[354592332,1740592241621,-500.0,0.00052054,120]
[354592333,1740592241630,-500.0,0.00052054,120]
[354592334,1740592241639,-500.0,0.00052054,120]
[354592335,1740592241648,-500.0,0.00052054,120]
[354592336,1740592241657,-500.0,0.00052054,120]
[354592337,1740592241666,-2275.2,0.00052054,120]
[354592338,1740592241675,-521.82712947,0.00052054,120]
[354592339,1740592241684,-500.0,0.00052054,120]
[354592340,1740592241693,-500.0,0.00052054,120]
[354592341,1740592241704,-500.0,0.00052054,120]
[354592342,1740592241717,-676.59,0.00052054,120]
[354592343,1740592241727,-500.0,0.00052054,120]
[354592344,1740592241736,-300.0,0.00052054,120]
[354592345,1740592241746,-500.0,0.00052054,120]
[354592346,1740592241755,-500.0,0.00052054,120]
[354592347,1740592241766,-934.4,0.00052054,120]
[354592348,1740592241775,-500.0,0.00052054,120]
[354592349,1740592241784,-500.0,0.00052054,120]
[354592350,1740592241794,-500.0,0.00052054,120]
[354592351,1740592241803,-500.0,0.00052054,120]
[354592352,1740592241814,-328.45555557,0.00052054,120]
[354592353,1740592241824,-1335.76,0.00052054,120]
[354592354,1740592241835,-571.95,0.00052054,120]
[354592355,1740592241847,-500.0,0.00052054,120]
[354592356,1740592241856,-500.0,0.00052054,120]
[354592357,1740592241867,-500.0,0.00052054,120]
[354592358,1740592241879,-500.0,0.00052054,120]
[354592359,1740592241888,-500.0,0.00052054,120]
[354592360,1740592241897,-500.0,0.00052054,120]
[354592361,1740592241906,-500.0,0.00052054,120]
[354592362,1740592241915,-1034.73,0.00052054,120]
[354592363,1740592241925,-628.32,0.00052054,120]
[354592364,1740592241935,-500.0,0.00052054,120]
[354592365,1740592241945,-500.0,0.00052054,120]
[354592366,1740592241954,-500.0,0.00052054,120]
[354592367,1740592241964,-535.78,0.00052054,120]
[354592368,1740592241973,-500.0,0.00052054,120]
[354592369,1740592241982,-500.0,0.00052054,120]
[354592370,1740592241991,-500.0,0.00052054,120]
[354592371,1740592242001,-500.0,0.00052054,120]
[354592372,1740592242010,-500.0,0.00052054,120]
[354592373,1740592242019,-500.0,0.00052054,120]
[354592374,1740592242030,-500.0,0.00052054,120]
[354592375,1740592242039,-456.60463459,0.00052054,120]
[354592376,1740592242049,-500.0,0.00052054,120]
[354592377,1740592242059,-500.0,0.00052054,120]
[354592378,1740592242068,-500.0,0.00052054,120]
[354592379,1740592242077,-500.0,0.00052054,120]
[354592380,1740592242087,-500.0,0.00052054,120]
[354592381,1740592242096,-500.0,0.00052054,120]
[354592382,1740592242105,-500.0,0.00052054,120]
[354592383,1740592242114,-1819.31,0.00052054,120]
[354592384,1740592242125,-417.57534956,0.00052054,120]
[354592385,1740592242134,-1168.75,0.00052054,120]
[354592386,1740592242143,-500.0,0.00052054,120]
[354592387,1740592242154,-500.0,0.00052054,120]
[354592388,1740592242163,-500.0,0.00052054,120]
[354592389,1740592242172,-312.58581069,0.00052054,120]
[354592390,1740592242181,-500.0,0.00052054,120]
[354592391,1740592242191,-500.0,0.00052054,120]
[354592392,1740592242199,-787.63,0.00052054,14]
[354592393,1740592242208,-500.0,0.00052054,120]
[354592394,1740592242218,-500.0,0.00052054,120]
[354592395,1740592242227,-500.0,0.00052054,120]
[354592397,1740592242237,-500.0,0.00052054,120]
[354592398,1740592242247,-505.19888005,0.00052054,120]
[354592399,1740592242256,-500.0,0.00052054,120]
[354592400,1740592242265,-617.27,0.00052054,120]
[354592401,1740592242274,-1930.95,0.00052054,120]
[354592402,1740592242283,-500.0,0.00052054,120]
[354592404,1740592242292,-500.0,0.00052054,120]
[354592405,1740592242302,-500.0,0.00052054,120]
[354592406,1740592242311,-500.0,0.00052054,120]
[354592407,1740592242321,-500.0,0.00052054,120]
[354592408,1740592242330,-500.0,0.00052054,120]
[354592409,1740592242339,-500.0,0.00052054,120]
[354592410,1740592242348,-500.0,0.00052054,120]
[354592411,1740592242358,-680.42,0.00052054,120]
[354592412,1740592242368,-500.0,0.00052054,120]
[354592413,1740592242380,-500.0,0.00052054,120]
[354592414,1740592242389,-500.0,0.00052054,120]
[354592415,1740592242399,-926.41,0.00052054,120]
[354592416,1740592242408,-500.0,0.00052054,120]
[354592417,1740592242418,-1071.92,0.00052054,120]
[354592418,1740592242428,-500.0,0.00052054,120]
[354592420,1740592242437,-1016.9,0.00052054,120]
[354592422,1740592242446,-500.0,0.00052054,120]
[354592425,1740592242456,-728.58,0.00052054,120]
[354592429,1740592242465,-504.72494723,0.00052054,120]
[354592430,1740592242475,-878.87,0.00052054,120]
[354592431,1740592242484,-500.0,0.00052054,120]
[354592432,1740592242493,-500.0,0.00052054,120]
[354592433,1740592242503,-312.47284642,0.00052054,120]
[354592434,1740592242512,-1000.0,0.00052054,20]
[354592435,1740592242522,-500.0,0.00052054,120]
[354592436,1740592242531,-500.0,0.00052054,120]
[354592438,1740592242540,-500.0,0.00052054,120]
[354592440,1740592242549,-500.0,0.00052054,120]
[354592442,1740592242558,-500.0,0.00052054,120]
[354592444,1740592242566,-500.0,0.00052054,120]
[354592446,1740592242575,-500.0,0.00052054,120]
[354592448,1740592242585,-1108.61,0.00052054,120]
[354592450,1740592242594,-3000.0,0.00052054,120]
[354592453,1740592242603,-627.58,0.00052054,120]
[354592454,1740592242612,-500.0,0.00052054,120]
[354592455,1740592242621,-500.0,0.00052054,120]
[354592456,1740592242631,-545.46,0.00052054,120]
[354592457,1740592242640,-500.0,0.00052054,120]
[354592458,1740592242649,-500.0,0.00052054,120]
[354592459,1740592242658,-500.0,0.00052054,120]
[354592460,1740592242667,-500.0,0.00052054,120]
[354592461,1740592242676,-500.0,0.00052054,120]
[354592462,1740592242686,-812.48,0.00052054,120]
[354592463,1740592242695,-500.0,0.00052054,120]
[354592464,1740592242705,-1000.0,0.00052054,120]
[354592465,1740592242719,-670.5,0.00052054,120]
[354592466,1740592242728,-1753.67,0.00052054,120]
[354592467,1740592242739,-504.43980332,0.00052054,120]
[354592468,1740592242749,-838.68,0.00052054,120]
[354592469,1740592242759,-727.89,0.00052054,120]
[354592470,1740592242768,-760.69,0.00052054,120]
[354592471,1740592242777,-738.35,0.00052054,120]
[354592472,1740592242788,-1244.73,0.00052054,120]
[354592473,1740592242797,-500.0,0.00052054,120]
[354592474,1740592242806,-1252.76,0.00052054,120]
[354592475,1740592242816,-500.0,0.00052054,10]
[354592476,1740592242825,-673.0,0.00052054,120]
[354592477,1740592242835,-500.0,0.00052054,120]
[354592478,1740592242843,-500.0,0.00052054,120]
[354592479,1740592242852,-2043.16,0.00052054,120]
[354592480,1740592242862,-570.89227641,0.00052054,120]
[354592481,1740592242872,-500.0,0.00052054,120]
[354592482,1740592242882,-727.14,0.00052054,120]
[354592483,1740592242891,-501.634988,0.00052054,120]
[354592484,1740592242900,-500.0,0.00052054,30]
[354592485,1740592242909,-500.0,0.00052054,120]
[354592486,1740592242918,-500.0,0.00052054,120]
[354592487,1740592242927,-2417.86,0.00052054,120]
[354592488,1740592242937,-500.0,0.00052054,120]
[354592489,1740592242946,-500.0,0.00052054,120]
[354592490,1740592242955,-500.0,0.00052054,120]
[354592491,1740592242965,-500.0,0.00052054,120]
[354592492,1740592242974,-500.0,0.00052054,120]
[354592493,1740592242983,-250.0,0.00052054,120]
[354592494,1740592242992,-500.0,0.00052054,120]
[354592495,1740592243002,-500.0,0.00052054,120]
[354592496,1740592243011,-500.0,0.00052054,120]
[354592497,1740592243020,-1231.8,0.00052054,120]
[354592498,1740592243030,-537.56,0.00052054,120]
[354592499,1740592243039,-500.0,0.00052054,120]
[354592500,1740592243048,-933.54,0.00052054,120]
[354592501,1740592243057,-599.12,0.00052054,120]
[354592502,1740592243066,-959.58,0.00052054,120]
[354592503,1740592243075,-1368.68,0.00052054,120]
[354592504,1740592243085,-500.0,0.00052054,120]
[354592505,1740592243094,-501.43438982,0.00052054,120]
[354592506,1740592243103,-500.0,0.00052054,120]
[354592507,1740592243113,-740.12,0.00052054,120]
[354592508,1740592243122,-500.0,0.00052054,120]
[354592509,1740592243131,-500.0,0.00052054,120]
[354592510,1740592243140,-1545.2,0.00052054,120]
[354592511,1740592243149,-500.0,0.00052054,120]
[354592512,1740592243159,-500.0,0.00052054,120]
[354592513,1740592243168,-500.0,0.00052054,120]
[354592514,1740592243177,-500.0,0.00052054,120]
[354592515,1740592243187,-1017.84,0.00052054,120]
[354592516,1740592243195,-500.0,0.00052054,120]
[354592517,1740592243204,-653.16,0.00052054,120]
[354592518,1740592243214,-500.0,0.00052054,120]
[354592519,1740592243223,-500.0,0.00052054,120]
[354592520,1740592243232,-500.0,0.00052054,120]
[354592521,1740592243241,-500.0,0.00052054,120]
[354592522,1740592243250,-500.0,0.00052054,120]
[354592523,1740592243259,-500.0,0.00052054,120]
[354592524,1740592243268,-1281.08,0.00052054,120]
[354592525,1740592243277,-500.0,0.00052054,120]
[354592526,1740592243287,-500.0,0.00052054,120]
[354592527,1740592243295,-3084.24,0.00052054,120]
[354592528,1740592243305,-832.69,0.00052054,120]
[354592529,1740592243313,-500.0,0.00052054,120]
[354592530,1740592243323,-500.0,0.00052054,120]
[354592531,1740592243332,-500.0,0.00052054,120]
[354592532,1740592243341,-502.37737784,0.00052054,120]
[354592533,1740592243350,-500.0,0.00052054,120]
[354592534,1740592243359,-500.0,0.00052054,120]
[354592535,1740592243368,-761.03,0.00052054,120]
[354592536,1740592243379,-500.0,0.00052054,120]
[354592537,1740592243388,-500.0,0.00052054,120]
[354592538,1740592243397,-500.0,0.00052054,120]
[354592539,1740592243406,-500.0,0.00052054,120]
[354592540,1740592243415,-500.0,0.00052054,120]
[354592541,1740592243424,-500.0,0.00052054,120]
[354592542,1740592243433,-500.0,0.00052054,120]
[354592543,1740592243442,-500.0,0.00052054,120]
[354592544,1740592243451,-647.14,0.00052054,120]
[354592545,1740592243460,-500.0,0.00052054,120]
[354592546,1740592243470,-794.45,0.00052054,120]
[354592547,1740592243479,-500.0,0.00052054,120]
[354592548,1740592243488,-500.0,0.00052054,120]
[354592549,1740592243497,-500.0,0.00052054,120]
[354592550,1740592243507,-500.0,0.00052054,120]
[354592551,1740592243517,-500.0,0.00052054,120]
[354592552,1740592243526,-500.0,0.00052054,120]
[354592553,1740592243535,-500.0,0.00052054,120]
[354592554,1740592243545,-500.0,0.00052054,120]
[354592555,1740592243554,-500.0,0.00052054,120]
[354592556,1740592243563,-500.0,0.00052054,120]
[354592557,1740592243573,-500.0,0.00052054,120]
[354592558,1740592243582,-500.0,0.00052054,120]
[354592559,1740592243591,-4410.88,0.00052054,120]
[354592560,1740592243600,-500.0,0.00052054,120]
[354592561,1740592243610,-500.0,0.00052054,120]
[354592562,1740592243619,-500.0,0.00052054,120]
[354592563,1740592243633,-550.46915116,0.00052054,120]
[354592564,1740592243642,-565.54,0.00052054,120]
[354592565,1740592243651,-1955.8,0.00052054,120]
[354592566,1740592243660,-500.0,0.00052054,120]
[354592567,1740592243670,-500.0,0.00052054,120]
[354592568,1740592243679,-500.0,0.00052054,120]
[354592569,1740592243688,-500.0,0.00052054,120]
[354592570,1740592243698,-367.45079647,0.00052054,120]
[354592571,1740592243711,-981.77,0.00052054,120]
[354592572,1740592243721,-624.23,0.00052054,120]
[354592573,1740592243731,-500.0,0.00052054,120]
[354592574,1740592243741,-500.0,0.00052054,120]
[354592575,1740592243753,-1009.88,0.00052054,120]
[354592576,1740592243762,-500.0,0.00052054,120]
[354592577,1740592243772,-500.0,0.00052054,120]
[354592578,1740592243782,-500.0,0.00052054,120]
[354592579,1740592243792,-500.0,0.00052054,120]
[354592580,1740592243801,-500.0,0.00052054,120]
[354592581,1740592243811,-500.0,0.00052054,120]
[354592582,1740592243820,-500.0,0.00052054,120]
[354592583,1740592243830,-2579.14,0.00052054,120]
[354592584,1740592243839,-500.0,0.00052054,120]
[354592585,1740592243848,-500.0,0.00052054,120]
[354592586,1740592243858,-500.0,0.00052054,120]
[354592587,1740592243868,-1044.27,0.00052054,120]
[354592588,1740592243878,-500.0,0.00052054,120]
[354592589,1740592243887,-500.0,0.00052054,120]
[354592590,1740592243896,-500.0,0.00052054,120]
[354592591,1740592243906,-500.0,0.00052054,120]
[354592592,1740592243915,-500.0,0.00052054,120]
[354592593,1740592243924,-500.0,0.00052054,120]
[354592594,1740592243933,-583.37,0.00052054,120]
[354592595,1740592243942,-500.0,0.00052054,120]
[354592596,1740592244115,-929.22,0.00052054,120]
[354592597,1740592244126,-886.52,0.00052054,120]
[354592598,1740592244135,-500.0,0.00052054,120]
[354592599,1740592244144,-501.20326332,0.00052054,120]
[354592600,1740592244154,-500.0,0.00052054,120]
[354592601,1740592244163,-1352.04,0.00052054,120]
[354592602,1740592244172,-500.0,0.00052054,120]
[354592603,1740592244181,-503.02322235,0.00052054,120]
[354592604,1740592244190,-500.0,0.00052054,120]
[354592605,1740592244199,-500.0,0.00052054,120]
[354592606,1740592244209,-500.0,0.00052054,120]
[354592607,1740592244219,-500.0,0.00052054,120]
[354592608,1740592244228,-500.0,0.00052054,120]
[354592609,1740592244237,-1987.42,0.00052054,120]
[354592610,1740592244246,-500.0,0.00052054,120]
[354592611,1740592244255,-500.0,0.00052054,120]
[354592612,1740592244264,-500.0,0.00052054,120]
[354592613,1740592244274,-506.44,0.00052054,120]
[354592614,1740592244283,-1837.28,0.00052054,120]
[354592615,1740592244292,-500.0,0.00052054,120]
[354592616,1740592244301,-500.0,0.00052054,120]
[354592617,1740592244311,-891.29,0.00052054,120]
[354592618,1740592244320,-500.0,0.00052054,120]
[354592619,1740592244329,-674.1,0.00052054,120]
[354592620,1740592244338,-853.51,0.00052054,120]
[354592621,1740592244347,-500.0,0.00052054,120]
[354592622,1740592244357,-500.0,0.00052054,120]
[354592623,1740592244366,-502.84178624,0.00052054,120]
[354592624,1740592244379,-776.72,0.00052054,120]
[354592625,1740592244388,-500.0,0.00052054,120]
[354592626,1740592244397,-502.07040262,0.00052054,120]
[354592627,1740592244406,-239.16209288,0.00052054,120]
[354592628,1740592244415,-500.0,0.00052054,120]
[354592630,1740592244424,-500.0,0.00052054,120]
[354592632,1740592244434,-1224.38,0.00052054,120]
[354592633,1740592244443,-1224.38,0.00052054,120]
[354592635,1740592244453,-1224.38,0.00052054,120]
[354592637,1740592244462,-1445.3,0.00052054,120]
[354592639,1740592244471,-1224.38,0.00052054,120]
[354592640,1740592244480,-1224.38,0.00052054,120]
[354592641,1740592244489,-504.85927931,0.00052054,120]
[354592643,1740592244498,-1224.38,0.00052054,120]
[354592645,1740592244507,-500.0,0.00052054,120]
[354592647,1740592244517,-1224.38,0.00052054,120]
[354592649,1740592244526,-1224.38,0.00052054,120]
[354592651,1740592244535,-1224.38,0.00052054,120]
[354592653,1740592244544,-4057.5,0.00052054,120]
[354592655,1740592244553,-1224.38,0.00052054,120]
[354592657,1740592244563,-1224.38,0.00052054,120]
[354592659,1740592244572,-1224.38,0.00052054,120]
[354592661,1740592244581,-1224.38,0.00052054,120]
[354592663,1740592244590,-1224.38,0.00052054,120]
[354592665,1740592244599,-1224.38,0.00052054,120]
[354592667,1740592244609,-1224.38,0.00052054,120]
[354592669,1740592244619,-1224.38,0.00052054,120]
[354592671,1740592244632,-500.0,0.00052054,120]
[354592673,1740592244642,-599.35,0.00052054,15]
[354592675,1740592244652,-1224.38,0.00052054,120]
[354592677,1740592244661,-1224.38,0.00052054,120]
[354592679,1740592244671,-1224.38,0.00052054,120]
[354592681,1740592244680,-1224.38,0.00052054,120]
[354592683,1740592244689,-1224.38,0.00052054,120]
[354592685,1740592244698,-1000.0,0.00052054,30]
[354592687,1740592244708,-1224.38,0.00052054,120]
[354592689,1740592244721,-1224.45820206,0.00052054,120]
[354592690,1740592244731,-500.0,0.00052054,120]
[354592692,1740592244740,-500.0,0.00052054,120]
[354592694,1740592244750,-500.0,0.00052054,120]
[354592696,1740592244759,-500.0,0.00052054,45]
[354592699,1740592244768,-3342.15,0.00052054,120]
[354592700,1740592244778,-500.0,0.00052054,120]
[354592702,1740592244789,-1321.26,0.00052054,120]
[354592704,1740592244798,-500.0,0.00052054,120]
[354592707,1740592244807,-500.0,0.00052054,120]
[354592708,1740592244817,-500.0,0.00052054,120]
[354592710,1740592244826,-500.0,0.00052054,120]
[354592713,1740592244835,-297.25815405,0.00052054,120]
[354592715,1740592244847,-2178.37,0.00052054,120]
[354592717,1740592244855,-500.0,0.00052054,120]
[354592719,1740592244865,-520.29,0.00052054,120]
[354592720,1740592244876,-707.37,0.00052054,120]
[354592722,1740592244886,-1916.95,0.00052054,120]
[354592724,1740592244896,-509.25657923,0.00052054,120]
[354592726,1740592244905,-500.0,0.00052054,120]
[354592728,1740592244915,-500.0,0.00052054,120]
[354592730,1740592244926,-500.0,0.00052054,120]
[354592732,1740592244935,-500.0,0.00052054,120]
[354592734,1740592244944,-500.0,0.00052054,120]
[354592736,1740592244954,-500.0,0.00052054,120]
[354592738,1740592244963,-1532.43,0.00052054,120]
[354592740,1740592244972,-500.0,0.00052054,120]
[354592741,1740592244981,-1517.79,0.00052054,120]
[354592743,1740592244991,-726.52,0.00052054,30]
[354592744,1740592245000,-538.6,0.00052054,120]
[354592745,1740592245009,-500.0,0.00052054,120]
[354592746,1740592245019,-504.04887487,0.00052054,120]
[354592747,1740592245029,-500.0,0.00052054,120]
[354592748,1740592245038,-500.0,0.00052054,120]
[354592749,1740592245048,-500.0,0.00052054,120]
[354592750,1740592245057,-500.0,0.00052054,120]
[354592751,1740592245067,-500.0,0.00052054,30]
[354592752,1740592245076,-500.0,0.00052054,120]
[354592753,1740592245085,-500.0,0.00052054,120]
[354592754,1740592245095,-500.0,0.00052054,120]
[354592755,1740592245105,-573.10667864,0.00052054,120]
[354592756,1740592245114,-216.10474687,0.00052054,120]